[Event "Late-Titled-Tuesday-Blitz-February-13-2024"]
[Site "Chess.com"]
[Date "2024.02.13"]
[Round "1"]
[White "BozeKat"]
[Black "pedroholly22"]
[Result "1-0"]
[WhiteElo "2027"]
[BlackElo "2521"]
[TimeControl "180+1"]
[EndTime "14:07:48 PST"]
[Termination "BozeKat won by resignation"]

1. d4 {[%clk 0:03:00.9]} 1... Nf6 {[%clk 0:02:57.7]} 2. Bg5 {[%clk 0:03:00.7]}
2... Ne4 {[%clk 0:02:55.4]} 3. Bf4 {[%clk 0:03:00.9]} 3... c5 {[%clk 0:02:55.9]}
4. f3 {[%clk 0:03:00.4]} 4... Qa5+ {[%clk 0:02:49.9]} 5. c3 {[%clk 0:03:00.3]}
5... Nf6 {[%clk 0:02:50]} 6. d5 {[%clk 0:03:00.4]} 6... d6 {[%clk 0:02:50.3]} 7.
e4 {[%clk 0:02:59.5]} 7... g6 {[%clk 0:02:50.6]} 8. Nd2 {[%clk 0:02:48.7]} 8...
Bg7 {[%clk 0:02:50.5]} 9. Bd3 {[%clk 0:02:45.5]} 9... O-O {[%clk 0:02:50.5]} 10.
Ne2 {[%clk 0:02:43.3]} 10... b5 {[%clk 0:02:49.5]} 11. c4 {[%clk 0:02:39.6]}
11... bxc4 {[%clk 0:02:46.8]} 12. Bxc4 {[%clk 0:02:39.1]} 12... Nfd7 {[%clk
0:02:46.3]} 13. Qc2 {[%clk 0:02:33.7]} 13... Ba6 {[%clk 0:02:45.6]} 14. O-O
{[%clk 0:02:31.3]} 14... Nb6 {[%clk 0:02:33.6]} 15. Bxa6 {[%clk 0:02:26.8]}
15... Nxa6 {[%clk 0:02:33]} 16. a3 {[%clk 0:02:24.6]} 16... Qa4 {[%clk
0:02:25.6]} 17. Rac1 {[%clk 0:02:18.1]} 17... Qxc2 {[%clk 0:02:20.5]} 18. Rxc2
{[%clk 0:02:19]} 18... Rab8 {[%clk 0:02:20.6]} 19. Nc3 {[%clk 0:02:11.9]} 19...
Nd7 {[%clk 0:02:18.8]} 20. Nc4 {[%clk 0:02:05.5]} 20... Bd4+ {[%clk 0:01:53.2]}
21. Be3 {[%clk 0:02:00.9]} 21... Ne5 {[%clk 0:01:44.8]} 22. Bxd4 {[%clk
0:01:50.5]} 22... Nxc4 {[%clk 0:01:43.2]} 23. Ne2 {[%clk 0:01:32]} 23... cxd4
{[%clk 0:01:36.2]} 24. Rxc4 {[%clk 0:01:31.1]} 24... d3 {[%clk 0:01:36.5]} 25.
Nf4 {[%clk 0:01:30.9]} 25... d2 {[%clk 0:01:35.1]} 26. Rc2 {[%clk 0:01:27.6]}
26... Rfc8 {[%clk 0:01:31.6]} 27. Rxd2 {[%clk 0:01:26.1]} 27... Rb3 {[%clk
0:01:32.2]} 28. Nd3 {[%clk 0:01:21.1]} 28... Rcb8 {[%clk 0:01:28.3]} 29. Rc1
{[%clk 0:01:10.2]} 29... R8b7 {[%clk 0:01:28.6]} 30. Rcc2 {[%clk 0:01:06.5]}
30... Kg7 {[%clk 0:01:25.9]} 31. Kf2 {[%clk 0:01:05.1]} 31... Nc7 {[%clk
0:01:23]} 32. Nb4 {[%clk 0:01:01.3]} 32... Nb5 {[%clk 0:01:20.3]} 33. Nc6 {[%clk
0:00:58.4]} 33... Nxa3 {[%clk 0:01:00.7]} 34. bxa3 {[%clk 0:00:56.4]} 34... Rxa3
{[%clk 0:01:01.6]} 35. Ra2 {[%clk 0:00:55.7]} 35... Rbb3 {[%clk 0:00:58.3]} 36.
Rxa3 {[%clk 0:00:53.3]} 36... Rxa3 {[%clk 0:00:58.7]} 37. Nxe7 {[%clk
0:00:50.6]} 37... a5 {[%clk 0:00:59]} 38. Nc6 {[%clk 0:00:50]} 38... a4 {[%clk
0:00:59.3]} 39. Rd4 {[%clk 0:00:44.8]} 39... Ra2+ {[%clk 0:00:57.8]} 40. Kg3
{[%clk 0:00:44.9]} 40... Kf6 {[%clk 0:00:58.1]} 41. h4 {[%clk 0:00:34.3]} 41...
h5 {[%clk 0:00:55.3]} 42. Rb4 {[%clk 0:00:33.4]} 42... a3 {[%clk 0:00:53.9]} 43.
Ra4 {[%clk 0:00:33.2]} 43... Ra1 {[%clk 0:00:53.6]} 44. Nb4 {[%clk 0:00:31.8]}
44... Ke5 {[%clk 0:00:49.4]} 45. Nc2 {[%clk 0:00:31.6]} 45... Rc1 {[%clk
0:00:49.8]} 46. Nxa3 {[%clk 0:00:31.7]} 46... Ra1 {[%clk 0:00:50.2]} 47. Nc4+
{[%clk 0:00:32]} 47... Kd4 {[%clk 0:00:50.6]} 48. Rxa1 {[%clk 0:00:32.9]} 48...
Kxc4 {[%clk 0:00:50.8]} 49. Rc1+ {[%clk 0:00:33.7]} 49... Kd4 {[%clk 0:00:51.2]}
50. Rc6 {[%clk 0:00:34.6]} 50... Ke5 {[%clk 0:00:52.1]} 51. f4+ {[%clk
0:00:34.3]} 51... Kxe4 {[%clk 0:00:51.7]} 52. Rxd6 {[%clk 0:00:35]} 52... Kf5
{[%clk 0:00:51.9]} 53. Rd8 {[%clk 0:00:35.9]} 53... f6 {[%clk 0:00:52.4]} 54. d6
{[%clk 0:00:36.3]} 54... Ke6 {[%clk 0:00:52.6]} 55. Kf3 {[%clk 0:00:36.2]} 55...
f5 {[%clk 0:00:52]} 56. Ke3 {[%clk 0:00:36.6]} 56... Kf6 {[%clk 0:00:52.4]} 57.
Kd4 {[%clk 0:00:36.8]} 57... Ke6 {[%clk 0:00:52.8]} 58. Kc5 {[%clk 0:00:37]}
58... g5 {[%clk 0:00:49.1]} 59. hxg5 {[%clk 0:00:36.5]} 1-0

[Event "Late-Titled-Tuesday-Blitz-February-13-2024"]
[Site "Chess.com"]
[Date "2024.02.13"]
[Round "1"]
[White "SergioMoralesG"]
[Black "dropstoneDP"]
[Result "0-1"]
[WhiteElo "2512"]
[BlackElo "3046"]
[TimeControl "180+1"]
[EndTime "14:07:55 PST"]
[Termination "dropstoneDP won by resignation"]

1. d4 {[%clk 0:02:53.1]} 1... d5 {[%clk 0:02:58.8]} 2. c4 {[%clk 0:02:53.2]}
2... dxc4 {[%clk 0:02:58.8]} 3. Nf3 {[%clk 0:02:53.1]} 3... Nf6 {[%clk
0:02:59.1]} 4. e3 {[%clk 0:02:53.4]} 4... e6 {[%clk 0:02:59.6]} 5. Bxc4 {[%clk
0:02:53.3]} 5... c5 {[%clk 0:02:59.8]} 6. O-O {[%clk 0:02:51.6]} 6... Nc6 {[%clk
0:02:59.3]} 7. Nc3 {[%clk 0:02:51]} 7... a6 {[%clk 0:02:57.6]} 8. Qe2 {[%clk
0:02:47.8]} 8... b5 {[%clk 0:02:56.9]} 9. Bb3 {[%clk 0:02:47.9]} 9... Bb7 {[%clk
0:02:57.4]} 10. Rd1 {[%clk 0:02:43.1]} 10... Be7 {[%clk 0:02:50.9]} 11. d5
{[%clk 0:02:26.6]} 11... exd5 {[%clk 0:02:46.9]} 12. Nxd5 {[%clk 0:02:24.6]}
12... Nxd5 {[%clk 0:02:46.9]} 13. Bxd5 {[%clk 0:02:23.7]} 13... Qc7 {[%clk
0:02:44.2]} 14. b3 {[%clk 0:02:10.9]} 14... O-O {[%clk 0:02:32.1]} 15. Bb2
{[%clk 0:02:11]} 15... Rad8 {[%clk 0:02:31]} 16. Rac1 {[%clk 0:02:08]} 16... Nb4
{[%clk 0:02:22.8]} 17. Bxb7 {[%clk 0:01:59.7]} 17... Qxb7 {[%clk 0:02:23.7]} 18.
a3 {[%clk 0:01:50.7]} 18... Nc6 {[%clk 0:02:22.3]} 19. Qc2 {[%clk 0:01:47.1]}
19... Rxd1+ {[%clk 0:02:14.4]} 20. Rxd1 {[%clk 0:01:46.6]} 20... Rd8 {[%clk
0:02:14.4]} 21. h3 {[%clk 0:01:42]} 21... Rd7 {[%clk 0:02:03.2]} 22. Rd2 {[%clk
0:01:32.1]} 22... h6 {[%clk 0:01:56.9]} 23. Qd1 {[%clk 0:01:31.5]} 23... Rxd2
{[%clk 0:01:51.7]} 24. Qxd2 {[%clk 0:01:32.4]} 24... Qc7 {[%clk 0:01:49.8]} 25.
Qd5 {[%clk 0:01:31]} 25... Qd6 {[%clk 0:01:42.4]} 26. e4 {[%clk 0:01:21]} 26...
Qxd5 {[%clk 0:01:33.3]} 27. exd5 {[%clk 0:01:21.9]} 27... Na5 {[%clk 0:01:33.7]}
28. Nd2 {[%clk 0:01:17.6]} 28... Bg5 {[%clk 0:01:31.8]} 29. Ne4 {[%clk
0:01:06.2]} 29... Nxb3 {[%clk 0:01:27.9]} 30. Nxg5 {[%clk 0:00:57.9]} 30... hxg5
{[%clk 0:01:28.8]} 31. d6 {[%clk 0:00:58.3]} 31... Na5 {[%clk 0:00:40.7]} 32. d7
{[%clk 0:00:58.1]} 32... Nc6 {[%clk 0:00:40.7]} 33. Be5 {[%clk 0:00:58.4]} 33...
b4 {[%clk 0:00:37.4]} 34. axb4 {[%clk 0:00:46.2]} 34... cxb4 {[%clk 0:00:38.3]}
35. Kf1 {[%clk 0:00:44.4]} 35... f6 {[%clk 0:00:35.5]} 36. Bd6 {[%clk
0:00:31.1]} 36... b3 {[%clk 0:00:33.1]} 37. Ba3 {[%clk 0:00:29.3]} 37... Kf7
{[%clk 0:00:33.5]} 38. Ke2 {[%clk 0:00:28.9]} 38... Ke6 {[%clk 0:00:33.6]} 39.
Kd3 {[%clk 0:00:23.3]} 39... Kxd7 {[%clk 0:00:33.6]} 40. Kc4 {[%clk 0:00:19.7]}
40... Ne5+ {[%clk 0:00:31.9]} 41. Kxb3 {[%clk 0:00:19.1]} 41... Nd3 {[%clk
0:00:32.4]} 42. Bf8 {[%clk 0:00:04.5]} 42... g6 {[%clk 0:00:30.7]} 43. Kc4
{[%clk 0:00:03.8]} 43... Nxf2 {[%clk 0:00:29.9]} 44. Kd5 {[%clk 0:00:03.8]}
44... Nd3 {[%clk 0:00:28]} 45. Bg7 {[%clk 0:00:04]} 45... Ke7 {[%clk 0:00:27.9]}
46. g3 {[%clk 0:00:03]} 46... Kf7 {[%clk 0:00:27.7]} 47. Bh6 {[%clk 0:00:02.8]}
47... Ne5 {[%clk 0:00:28]} 48. h4 {[%clk 0:00:02.8]} 48... Ng4 {[%clk
0:00:26.3]} 49. hxg5 {[%clk 0:00:02.2]} 49... Nxh6 {[%clk 0:00:20.6]} 50. gxh6
{[%clk 0:00:03.1]} 50... f5 {[%clk 0:00:19.4]} 51. Ke5 {[%clk 0:00:03.1]} 51...
Kg8 {[%clk 0:00:19.7]} 52. Kf6 {[%clk 0:00:03.4]} 52... Kh7 {[%clk 0:00:20.1]}
53. Kg5 {[%clk 0:00:03.6]} 53... a5 {[%clk 0:00:20]} 54. g4 {[%clk 0:00:03.6]}
54... fxg4 {[%clk 0:00:20.9]} 55. Kxg4 {[%clk 0:00:03.9]} 55... Kxh6 {[%clk
0:00:21.3]} 0-1

[Event "Late-Titled-Tuesday-Blitz-February-13-2024"]
[Site "Chess.com"]
[Date "2024.02.13"]
[Round "1"]
[White "elchacal664"]
[Black "SchmakAttack"]
[Result "0-1"]
[WhiteElo "2413"]
[BlackElo "2781"]
[TimeControl "180+1"]
[EndTime "14:07:55 PST"]
[Termination "SchmakAttack won by resignation"]

1. e4 {[%clk 0:02:56]} 1... c5 {[%clk 0:02:58.7]} 2. Nf3 {[%clk 0:02:51.7]} 2...
d6 {[%clk 0:02:58]} 3. g3 {[%clk 0:02:46.6]} 3... Nf6 {[%clk 0:02:56.7]} 4. d3
{[%clk 0:02:46.5]} 4... Nc6 {[%clk 0:02:56.1]} 5. Bg2 {[%clk 0:02:40.2]} 5... g6
{[%clk 0:02:56.1]} 6. O-O {[%clk 0:02:40.5]} 6... Bg7 {[%clk 0:02:56.5]} 7. Re1
{[%clk 0:02:39.4]} 7... O-O {[%clk 0:02:53.5]} 8. h3 {[%clk 0:02:40.3]} 8... d5
{[%clk 0:02:36.5]} 9. exd5 {[%clk 0:02:30.6]} 9... Nxd5 {[%clk 0:02:36.3]} 10.
Nbd2 {[%clk 0:02:28.7]} 10... b6 {[%clk 0:02:23.9]} 11. Ne4 {[%clk 0:02:22.6]}
11... h6 {[%clk 0:02:10.2]} 12. Rb1 {[%clk 0:02:21.3]} 12... Bb7 {[%clk
0:02:06.7]} 13. a3 {[%clk 0:02:18.2]} 13... Re8 {[%clk 0:01:35.6]} 14. Bd2
{[%clk 0:02:17.8]} 14... e5 {[%clk 0:01:34.3]} 15. Qc1 {[%clk 0:02:11.5]} 15...
f5 {[%clk 0:01:33.7]} 16. Nc3 {[%clk 0:02:10.9]} 16... Nxc3 {[%clk 0:01:33.2]}
17. Bxc3 {[%clk 0:02:07.7]} 17... Qd7 {[%clk 0:01:21]} 18. Kh2 {[%clk
0:02:00.9]} 18... Rad8 {[%clk 0:01:18.5]} 19. Nh4 {[%clk 0:01:38]} 19... Kh7
{[%clk 0:01:15.2]} 20. Nf3 {[%clk 0:01:32.5]} 20... Qc7 {[%clk 0:00:52.4]} 21.
Re2 {[%clk 0:01:19.2]} 21... e4 {[%clk 0:00:47.1]} 22. dxe4 {[%clk 0:01:11.7]}
22... fxe4 {[%clk 0:00:44.1]} 23. Nh4 {[%clk 0:01:10.5]} 23... Nd4 {[%clk
0:00:37.7]} 24. Bxd4 {[%clk 0:01:06.3]} 24... Bxd4 {[%clk 0:00:37.5]} 25. Qe1
{[%clk 0:00:55.5]} 25... Qf7 {[%clk 0:00:22.3]} 26. c3 {[%clk 0:00:52.4]} 26...
Bf6 {[%clk 0:00:19.2]} 27. Bxe4 {[%clk 0:00:45.8]} 27... Bxe4 {[%clk 0:00:18.9]}
28. Rxe4 {[%clk 0:00:45.2]} 28... Bxh4 {[%clk 0:00:19.4]} 29. gxh4 {[%clk
0:00:38.6]} 29... Rxe4 {[%clk 0:00:17]} 30. Qxe4 {[%clk 0:00:38.8]} 30... Qxf2+
{[%clk 0:00:17.5]} 31. Qg2 {[%clk 0:00:38.9]} 31... Qf4+ {[%clk 0:00:16.2]} 32.
Kh1 {[%clk 0:00:33.8]} 32... h5 {[%clk 0:00:16]} 33. Rg1 {[%clk 0:00:25.6]}
33... Rd6 {[%clk 0:00:15.2]} 34. Qg3 {[%clk 0:00:19.9]} 34... Qe4+ {[%clk
0:00:05.6]} 35. Kh2 {[%clk 0:00:19.6]} 35... Rd2+ {[%clk 0:00:04]} 36. Rg2
{[%clk 0:00:19.9]} 36... Rxg2+ {[%clk 0:00:03.8]} 37. Qxg2 {[%clk 0:00:20.2]}
37... Qxh4 {[%clk 0:00:04.2]} 38. Qb7+ {[%clk 0:00:20.4]} 38... Kh6 {[%clk
0:00:04.8]} 39. Qxa7 {[%clk 0:00:20.1]} 39... Qf2+ {[%clk 0:00:05]} 40. Kh1
{[%clk 0:00:20.3]} 40... Qxb2 {[%clk 0:00:05.5]} 41. a4 {[%clk 0:00:16]} 41...
Qxc3 {[%clk 0:00:05.6]} 42. Qxb6 {[%clk 0:00:16]} 42... Qxh3+ {[%clk 0:00:06]}
43. Kg1 {[%clk 0:00:15.9]} 43... Qg3+ {[%clk 0:00:06.7]} 44. Kh1 {[%clk
0:00:15.9]} 44... Qh4+ {[%clk 0:00:03.9]} 45. Kg1 {[%clk 0:00:14.6]} 45... Qd4+
{[%clk 0:00:02.5]} 46. Kg2 {[%clk 0:00:13.6]} 46... Qxa4 {[%clk 0:00:02.9]} 47.
Qxc5 {[%clk 0:00:13.9]} 47... Qg4+ {[%clk 0:00:03.5]} 48. Kh1 {[%clk 0:00:13.7]}
48... Qh4+ {[%clk 0:00:03.7]} 49. Kg2 {[%clk 0:00:12.2]} 49... Qg5+ {[%clk
0:00:04.6]} 50. Kf3 {[%clk 0:00:11.7]} 50... Qxc5 {[%clk 0:00:04.6]} 0-1

[Event "Late-Titled-Tuesday-Blitz-February-13-2024"]
[Site "Chess.com"]
[Date "2024.02.13"]
[Round "1"]
[White "nj123456"]
[Black "Semetey"]
[Result "1-0"]
[WhiteElo "2314"]
[BlackElo "2611"]
[TimeControl "180+1"]
[EndTime "14:07:55 PST"]
[Termination "nj123456 won on time"]

1. e4 {[%clk 0:03:00.9]} 1... c5 {[%clk 0:02:55.8]} 2. c3 {[%clk 0:03:00.8]}
2... d5 {[%clk 0:02:53.6]} 3. exd5 {[%clk 0:03:01.7]} 3... Qxd5 {[%clk
0:02:53.6]} 4. d4 {[%clk 0:03:02.4]} 4... cxd4 {[%clk 0:02:52.8]} 5. cxd4 {[%clk
0:03:03.3]} 5... e6 {[%clk 0:02:52.5]} 6. Nc3 {[%clk 0:03:02.1]} 6... Bb4 {[%clk
0:02:51.8]} 7. Nf3 {[%clk 0:03:02.7]} 7... Nf6 {[%clk 0:02:51.1]} 8. Bd3 {[%clk
0:03:02.1]} 8... O-O {[%clk 0:02:45.8]} 9. O-O {[%clk 0:03:01.5]} 9... Qh5
{[%clk 0:02:45.8]} 10. Qe2 {[%clk 0:02:47.2]} 10... Nc6 {[%clk 0:02:42]} 11. a3
{[%clk 0:02:40.2]} 11... Bd6 {[%clk 0:02:35.9]} 12. h3 {[%clk 0:02:21.8]} 12...
b6 {[%clk 0:02:26.7]} 13. Ne4 {[%clk 0:02:19.1]} 13... Nxe4 {[%clk 0:02:23.9]}
14. Bxe4 {[%clk 0:01:51.3]} 14... Bb7 {[%clk 0:02:23.1]} 15. Rd1 {[%clk
0:01:37]} 15... Rfd8 {[%clk 0:02:15.9]} 16. Be3 {[%clk 0:01:22.5]} 16... Rac8
{[%clk 0:02:13.6]} 17. Rac1 {[%clk 0:01:01.7]} 17... Bb8 {[%clk 0:02:02.1]} 18.
Kf1 {[%clk 0:00:48.9]} 18... h6 {[%clk 0:01:51.3]} 19. Ng1 {[%clk 0:00:43]}
19... Qa5 {[%clk 0:01:50.4]} 20. Qf3 {[%clk 0:00:41]} 20... Ba6+ {[%clk
0:01:46.6]} 21. Ne2 {[%clk 0:00:40.7]} 21... Ne7 {[%clk 0:01:26.8]} 22. Kg1
{[%clk 0:00:36.6]} 22... Qb5 {[%clk 0:01:17.6]} 23. Bd3 {[%clk 0:00:22.4]} 23...
Rxc1 {[%clk 0:01:02.1]} 24. Bxc1 {[%clk 0:00:14.6]} 24... Qa5 {[%clk 0:00:55.5]}
25. b4 {[%clk 0:00:14.6]} 25... Qa4 {[%clk 0:00:55.5]} 26. Nc3 {[%clk
0:00:14.5]} 26... Qb3 {[%clk 0:00:35.9]} 27. Bxa6 {[%clk 0:00:14.5]} 27... Nd5
{[%clk 0:00:36.2]} 28. Nxd5 {[%clk 0:00:13]} 28... Qxd5 {[%clk 0:00:31.6]} 29.
Qxd5 {[%clk 0:00:12.8]} 29... Rxd5 {[%clk 0:00:31.1]} 30. Bc4 {[%clk 0:00:13.4]}
30... Rd8 {[%clk 0:00:30.9]} 31. Be3 {[%clk 0:00:14]} 31... Rc8 {[%clk
0:00:24.1]} 32. Ba6 {[%clk 0:00:11.5]} 32... Rd8 {[%clk 0:00:16.7]} 33. Bb7
{[%clk 0:00:10.6]} 33... g6 {[%clk 0:00:16.1]} 34. d5 {[%clk 0:00:10.7]} 34...
Kg7 {[%clk 0:00:15.6]} 35. Kf1 {[%clk 0:00:10.5]} 35... exd5 {[%clk 0:00:15.4]}
36. Rxd5 {[%clk 0:00:10.3]} 36... Re8 {[%clk 0:00:15.9]} 37. Ke2 {[%clk
0:00:10.3]} 37... Bf4 {[%clk 0:00:15.3]} 38. Rd7 {[%clk 0:00:10.7]} 38... Bxe3
{[%clk 0:00:15.4]} 39. fxe3 {[%clk 0:00:11.6]} 39... Re5 {[%clk 0:00:15.2]} 40.
Bd5 {[%clk 0:00:10.8]} 40... Rf5 {[%clk 0:00:15.6]} 41. e4 {[%clk 0:00:11.2]}
41... Rf6 {[%clk 0:00:15.5]} 42. e5 {[%clk 0:00:11]} 42... Rf5 {[%clk
0:00:15.7]} 43. e6 {[%clk 0:00:11.1]} 43... Re5+ {[%clk 0:00:11.8]} 44. Kd3
{[%clk 0:00:11.1]} 44... g5 {[%clk 0:00:08.7]} 45. Rxf7+ {[%clk 0:00:11.3]}
45... Kg6 {[%clk 0:00:09.1]} 46. Be4+ {[%clk 0:00:11.5]} 46... Kh5 {[%clk
0:00:07.1]} 47. e7 {[%clk 0:00:12]} 47... Kh4 {[%clk 0:00:06.7]} 48. Kd4 {[%clk
0:00:12.2]} 48... Re6 {[%clk 0:00:07.1]} 49. Kd5 {[%clk 0:00:12.6]} 49... Rd6+
{[%clk 0:00:06.7]} 50. Kxd6 {[%clk 0:00:12.6]} 1-0

[Event "Late-Titled-Tuesday-Blitz-February-13-2024"]
[Site "Chess.com"]
[Date "2024.02.13"]
[Round "1"]
[White "Payyappat"]
[Black "Mariia89"]
[Result "1-0"]
[WhiteElo "2573"]
[BlackElo "2219"]
[TimeControl "180+1"]
[EndTime "14:07:55 PST"]
[Termination "Payyappat won by resignation"]

1. e4 {[%clk 0:03:00.9]} 1... c6 {[%clk 0:02:59.3]} 2. d4 {[%clk 0:03:00.7]}
2... d5 {[%clk 0:03:00.2]} 3. Nc3 {[%clk 0:03:00.3]} 3... dxe4 {[%clk
0:03:00.2]} 4. Nxe4 {[%clk 0:03:01.2]} 4... Nf6 {[%clk 0:03:01.1]} 5. Nxf6+
{[%clk 0:03:00.9]} 5... exf6 {[%clk 0:03:02]} 6. Bc4 {[%clk 0:03:01.5]} 6... Be7
{[%clk 0:03:00.9]} 7. Nf3 {[%clk 0:03:00.8]} 7... Bg4 {[%clk 0:02:59.6]} 8. Be3
{[%clk 0:03:00.9]} 8... Na6 {[%clk 0:02:58.7]} 9. Qd2 {[%clk 0:03:00.4]} 9...
Nc7 {[%clk 0:02:57.5]} 10. O-O-O {[%clk 0:03:00.3]} 10... Nd5 {[%clk 0:02:48.8]}
11. h3 {[%clk 0:02:58.6]} 11... Bh5 {[%clk 0:02:38]} 12. g4 {[%clk 0:02:53]}
12... Bg6 {[%clk 0:02:37.6]} 13. Nh4 {[%clk 0:02:53.1]} 13... b5 {[%clk
0:02:25.5]} 14. Bb3 {[%clk 0:02:47.1]} 14... a5 {[%clk 0:02:24.8]} 15. f4 {[%clk
0:02:46.3]} 15... Be4 {[%clk 0:02:21.2]} 16. Rhe1 {[%clk 0:02:41.5]} 16... a4
{[%clk 0:02:20.9]} 17. Bxd5 {[%clk 0:02:41]} 17... Qxd5 {[%clk 0:02:19.5]} 18.
Kb1 {[%clk 0:02:35.1]} 18... b4 {[%clk 0:01:33.4]} 19. Ka1 {[%clk 0:02:32.2]}
19... O-O {[%clk 0:01:15.4]} 20. Bf2 {[%clk 0:02:24.3]} 20... Rfe8 {[%clk
0:01:09.2]} 21. Re3 {[%clk 0:02:20.7]} 21... Bd6 {[%clk 0:00:49.9]} 22. Bg3
{[%clk 0:02:08.6]} 22... a3 {[%clk 0:00:21.4]} 23. b3 {[%clk 0:02:05.2]} 23...
c5 {[%clk 0:00:20]} 24. dxc5 {[%clk 0:00:59.2]} 24... Qxd2 {[%clk 0:00:18.9]}
25. Rxd2 {[%clk 0:00:56.8]} 25... Bxc5 {[%clk 0:00:18.6]} 26. Re1 {[%clk
0:00:54.3]} 26... Red8 {[%clk 0:00:13.6]} 27. Red1 {[%clk 0:00:49.8]} 27... Rxd2
{[%clk 0:00:13.4]} 28. Rxd2 {[%clk 0:00:50.7]} 28... g6 {[%clk 0:00:11.3]} 29.
Kb1 {[%clk 0:00:46.2]} 29... Kg7 {[%clk 0:00:09.7]} 30. Bf2 {[%clk 0:00:37.9]}
30... Bxf2 {[%clk 0:00:07.8]} 31. Rxf2 {[%clk 0:00:38.8]} 31... Rc8 {[%clk
0:00:08.2]} 32. Nf3 {[%clk 0:00:34.9]} 32... Rxc2 {[%clk 0:00:08.1]} 33. Rxc2
{[%clk 0:00:34.4]} 33... Bxf3 {[%clk 0:00:08.5]} 34. Rc4 {[%clk 0:00:29.6]}
34... Bg2 {[%clk 0:00:07.6]} 35. h4 {[%clk 0:00:29.3]} 35... Bh3 {[%clk
0:00:08]} 36. g5 {[%clk 0:00:29.6]} 36... fxg5 {[%clk 0:00:08]} 37. hxg5 {[%clk
0:00:30.1]} 37... h6 {[%clk 0:00:08.9]} 38. Rxb4 {[%clk 0:00:29.5]} 38... hxg5
{[%clk 0:00:09.2]} 39. fxg5 {[%clk 0:00:30.4]} 39... Kf8 {[%clk 0:00:05.9]} 40.
Ra4 {[%clk 0:00:29.3]} 40... Ke7 {[%clk 0:00:06]} 41. Rxa3 {[%clk 0:00:29.1]}
41... Ke6 {[%clk 0:00:05.4]} 42. Ra5 {[%clk 0:00:28.5]} 42... Bf5+ {[%clk
0:00:05.2]} 43. Kc1 {[%clk 0:00:28.7]} 43... f6 {[%clk 0:00:06.1]} 44. gxf6
{[%clk 0:00:28.4]} 44... Kxf6 {[%clk 0:00:07]} 45. Kd2 {[%clk 0:00:28.3]} 45...
g5 {[%clk 0:00:07.2]} 46. Ke3 {[%clk 0:00:28.1]} 46... g4 {[%clk 0:00:07.2]} 47.
Kf4 {[%clk 0:00:29]} 47... Bd7 {[%clk 0:00:07.4]} 48. Ra6+ {[%clk 0:00:29]}
48... Ke7 {[%clk 0:00:07.7]} 49. a4 {[%clk 0:00:28.6]} 49... Bc8 {[%clk
0:00:07.1]} 50. Rg6 {[%clk 0:00:28.8]} 50... Kf7 {[%clk 0:00:07.3]} 51. Rg5
{[%clk 0:00:28.6]} 51... Kf6 {[%clk 0:00:07.3]} 52. a5 {[%clk 0:00:28.7]} 1-0

[Event "Late-Titled-Tuesday-Blitz-February-13-2024"]
[Site "Chess.com"]
[Date "2024.02.13"]
[Round "1"]
[White "DucksParadise"]
[Black "TenisMaster"]
[Result "0-1"]
[WhiteElo "2494"]
[BlackElo "2927"]
[TimeControl "180+1"]
[EndTime "14:07:56 PST"]
[Termination "TenisMaster won on time"]

1. d4 {[%clk 0:02:58]} 1... Nf6 {[%clk 0:02:59.4]} 2. c4 {[%clk 0:02:57.5]} 2...
e6 {[%clk 0:02:59.7]} 3. Nf3 {[%clk 0:02:57.1]} 3... d5 {[%clk 0:03:00]} 4. g3
{[%clk 0:02:57.2]} 4... dxc4 {[%clk 0:02:59.8]} 5. Bg2 {[%clk 0:02:57.4]} 5...
a6 {[%clk 0:02:59.3]} 6. O-O {[%clk 0:02:55.6]} 6... Nc6 {[%clk 0:02:58.7]} 7.
Nbd2 {[%clk 0:02:54]} 7... Nxd4 {[%clk 0:02:54.4]} 8. Nxc4 {[%clk 0:02:53.9]}
8... Nxf3+ {[%clk 0:02:36.4]} 9. Bxf3 {[%clk 0:02:54.8]} 9... Bd6 {[%clk
0:02:32.1]} 10. Bg5 {[%clk 0:02:18]} 10... O-O {[%clk 0:02:28.1]} 11. Bxf6
{[%clk 0:02:17.6]} 11... gxf6 {[%clk 0:02:27.5]} 12. Rc1 {[%clk 0:02:15.1]}
12... Be7 {[%clk 0:02:22.7]} 13. Qb3 {[%clk 0:02:09]} 13... c6 {[%clk
0:02:20.3]} 14. Rfd1 {[%clk 0:01:55.3]} 14... Qc7 {[%clk 0:02:20.2]} 15. Nb6
{[%clk 0:01:51]} 15... Rb8 {[%clk 0:02:19]} 16. a4 {[%clk 0:01:50.1]} 16... a5
{[%clk 0:02:14]} 17. Qe3 {[%clk 0:01:39.2]} 17... Rd8 {[%clk 0:01:40.8]} 18. h4
{[%clk 0:01:11.3]} 18... f5 {[%clk 0:01:07.5]} 19. h5 {[%clk 0:01:00.4]} 19...
Bf6 {[%clk 0:00:57.8]} 20. b3 {[%clk 0:00:51.7]} 20... Rxd1+ {[%clk 0:00:43.6]}
21. Rxd1 {[%clk 0:00:50.9]} 21... e5 {[%clk 0:00:42.8]} 22. Nxc8 {[%clk
0:00:39.4]} 22... Rxc8 {[%clk 0:00:43.7]} 23. Qh6 {[%clk 0:00:39.3]} 23... Qe7
{[%clk 0:00:42.6]} 24. g4 {[%clk 0:00:26.3]} 24... e4 {[%clk 0:00:33.6]} 25. Bg2
{[%clk 0:00:23.2]} 25... Rd8 {[%clk 0:00:34.1]} 26. Rxd8+ {[%clk 0:00:19.5]}
26... Qxd8 {[%clk 0:00:35]} 27. Qf4 {[%clk 0:00:13.7]} 27... Qd1+ {[%clk
0:00:32.5]} 28. Kh2 {[%clk 0:00:13.6]} 28... Qd5 {[%clk 0:00:24.8]} 29. Qxf5
{[%clk 0:00:12.3]} 29... Qxf5 {[%clk 0:00:20.4]} 30. gxf5 {[%clk 0:00:13.2]}
30... e3 {[%clk 0:00:19.5]} 31. fxe3 {[%clk 0:00:12.9]} 31... Kf8 {[%clk
0:00:18.5]} 32. Kg3 {[%clk 0:00:13.2]} 32... Ke7 {[%clk 0:00:18.8]} 33. Kf4
{[%clk 0:00:13.7]} 33... Kd6 {[%clk 0:00:19.1]} 34. e4 {[%clk 0:00:13.1]} 34...
h6 {[%clk 0:00:19.4]} 35. e5+ {[%clk 0:00:09.4]} 35... Bxe5+ {[%clk 0:00:19.4]}
36. Ke4 {[%clk 0:00:10]} 36... f6 {[%clk 0:00:19.4]} 37. Kd3 {[%clk 0:00:10.2]}
37... Kc5 {[%clk 0:00:20.2]} 38. Kc2 {[%clk 0:00:10.2]} 38... Kd4 {[%clk
0:00:20.7]} 39. Bf3 {[%clk 0:00:07.5]} 39... Ke3 {[%clk 0:00:21.1]} 40. Bg2
{[%clk 0:00:07.6]} 40... Kf4 {[%clk 0:00:21.6]} 41. e4 {[%clk 0:00:06.9]} 41...
Kg4 {[%clk 0:00:21.6]} 42. Kd2 {[%clk 0:00:05.3]} 42... Kxh5 {[%clk 0:00:22.1]}
43. Ke3 {[%clk 0:00:05.3]} 43... Kg4 {[%clk 0:00:23]} 44. Bf3+ {[%clk
0:00:05.5]} 44... Kg3 {[%clk 0:00:22.2]} 45. Bh5 {[%clk 0:00:05.5]} 45... Kh4
{[%clk 0:00:22]} 46. Be2 {[%clk 0:00:05.6]} 46... h5 {[%clk 0:00:20.3]} 47. Kf3
{[%clk 0:00:05.8]} 47... Kh3 {[%clk 0:00:17.6]} 48. Bf1+ {[%clk 0:00:04.6]}
48... Kh2 {[%clk 0:00:17.7]} 49. Kf2 {[%clk 0:00:04.6]} 49... h4 {[%clk
0:00:16.5]} 50. Be2 {[%clk 0:00:03.7]} 50... Bd4+ {[%clk 0:00:15.5]} 51. Kf3
{[%clk 0:00:01.5]} 51... Kg1 {[%clk 0:00:14.6]} 52. Kg4 {[%clk 0:00:01.4]} 52...
Bf2 {[%clk 0:00:11.1]} 0-1